bitfinex/quotes_ETHUSD_20240710
["timestamp","ask_amount","ask_price","bid_price","bid_amount"]
[1720633193868,0.33615998,3117.8,3116.5,0.06417459]
[1720633194018,0.33615998,3117.8,3116.5,3.0]
[1720633194220,0.33615998,3117.8,3116.6,0.54758]
[1720633202991,0.33615998,3117.8,3116.7,1.11724446]
[1720633203142,0.33615998,3117.8,3116.6,0.54758]
[1720633203342,0.33615998,3117.8,3116.7,1.11726501]
[1720633203543,0.33615998,3117.8,3116.6,0.54758]
[1720633203845,0.33615998,3117.8,3116.7,1.11726275]
[1720633204039,0.33615998,3117.8,3116.5,3.0]
[1720633204239,0.33615998,3117.8,3116.6,1.11733279]
[1720633204444,0.33615998,3117.8,3116.5,3.0]
[1720633204988,0.33615998,3117.8,3116.4,6.14745643]
[1720633205275,0.33615998,3117.8,3116.5,3.40798899]
[1720633205483,0.33615998,3117.8,3116.6,6.46489978]
[1720633205683,0.33615998,3117.8,3116.7,3.46489978]
[1720633205887,0.33615998,3117.8,3116.8,5.79324335]
[1720633206185,0.33615998,3117.8,3116.9,4.11729921]
[1720633206348,0.33615998,3117.8,3116.6,3.67165643]
[1720633206553,0.33615998,3117.8,3116.7,2.79301318]
[1720633206757,0.33615998,3117.8,3116.7,3.0]
[1720633206955,0.33615998,3117.8,3116.5,3.61474564]
[1720633207284,0.33615998,3117.8,3116.6,2.79315356]
[1720633207487,0.33615998,3117.8,3116.7,3.0]
[1720633207670,0.33615998,3117.8,3116.5,3.61474564]
[1720633207876,2.3456,3118.0,3116.6,1.11727021]
[1720633208101,2.3456,3118.0,3116.5,3.0]
[1720633208254,2.3456,3118.0,3116.4,5.4758]
[1720633208597,2.3456,3118.0,3116.4,2.4758]
[1720633209101,0.55,3117.9,3116.3,3.0]
[1720633209389,2.4534,3117.8,3116.1,3.67165643]
[1720633209684,2.4534,3117.8,3116.2,5.79342633]
[1720633209894,2.4534,3117.8,3116.0,3.67165643]
[1720633210073,0.24534,3117.7,3116.1,3.69033423]
[1720633210248,0.24534,3117.7,3116.2,5.7934339]
[1720633210457,0.24534,3117.7,3116.3,1.11737356]
[1720633210657,0.24534,3117.7,3116.2,3.0]
[1720633210873,0.24534,3117.7,3116.3,1.11737297]
[1720633211079,0.269874,3117.6,3116.3,0.26859297]
[1720633211511,0.33616698,3117.5,3116.3,0.26859297]
[1720633212057,0.33616698,3117.5,3116.1,0.89690033]
[1720633212374,0.33616698,3117.5,3116.2,2.79348913]
[1720633212695,0.33616698,3117.5,3116.3,5.79341485]
[1720633212877,0.33616698,3117.5,3116.3,3.0]
[1720633213069,0.33616698,3117.5,3116.1,1.56855676]
[1720633213266,0.33616698,3117.5,3116.2,3.25030608]
[1720633213565,0.33616698,3117.5,3116.3,4.11738016]
[1720633213770,0.33616698,3117.5,3116.2,3.45685568]
[1720633214093,0.33616698,3117.5,3116.2,0.45685568]
[1720633216898,0.33616698,3117.5,3116.3,1.11737858]
[1720633217071,0.33616698,3117.5,3116.2,3.45685568]
[1720633217282,0.33616698,3117.5,3116.3,0.20281231]
[1720633219409,0.33616698,3117.5,3116.4,2.79328001]
[1720633219609,0.33616698,3117.5,3116.3,0.20281231]
[1720633219905,0.33616698,3117.5,3116.5,3.0]
[1720633220108,0.33616698,3117.5,3116.5,0.43201396]
[1720633220274,0.33616698,3117.5,3116.3,0.20281231]
[1720633220478,0.33616698,3117.5,3116.4,1.11733415]
[1720633220677,0.33616698,3117.5,3116.2,0.67436709]
[1720633221008,0.33616698,3117.5,3116.3,2.79333567]
[1720633221311,0.33616698,3117.5,3116.4,4.11733427]
[1720633221520,0.33616698,3117.5,3116.5,1.11729172]
[1720633221696,0.33616698,3117.5,3116.3,0.67436709]
[1720633221900,0.33616698,3117.5,3116.4,3.16067551]
[1720633222202,0.33616698,3117.5,3116.2,0.67436709]
[1720633222203,2.2762,3117.4,3116.2,0.67436709]
[1720633222506,2.2762,3117.4,3116.0,3.67436709]
[1720633222691,2.2762,3117.4,3116.1,2.79359013]
[1720633222926,2.2762,3117.4,3116.2,3.0]
[1720633223128,0.2612367,3117.3,3116.1,0.08399368]
[1720633223300,0.2612367,3117.3,3116.0,3.67436709]
[1720633223505,0.2612367,3117.3,3116.1,2.87763253]
[1720633223703,0.2612367,3117.3,3116.2,4.11745143]
[1720633223924,0.2612367,3117.3,3116.0,3.67436709]
[1720633224130,0.25374367,3117.2,3116.3,3.0]
[1720633224549,0.25374367,3117.2,3116.1,0.64616898]
[1720633224839,0.25374367,3117.2,3116.2,1.1174443]
[1720633225000,0.25374367,3117.2,3116.1,0.73016266]
[1720633225201,0.25374367,3117.2,3116.2,1.1174469]
[1720633225432,0.25374367,3117.2,3116.1,0.73016266]
[1720633225643,2.3707,3117.1,3116.0,3.0]
[1720633225822,2.3707,3117.1,3116.1,0.08399368]
[1720633226138,2.3707,3117.1,3116.2,0.0602432]
[1720633226436,2.3707,3117.1,3115.9,1.80671962]
[1720633226631,0.23707,3117.0,3116.3,0.06011318]
[1720633226826,0.57328368,3117.0,3115.9,1.80671962]
[1720633227026,0.57328368,3117.0,3116.4,0.06004346]
[1720633227227,0.57328368,3117.0,3115.9,1.80671962]
[1720633227427,0.57328368,3117.0,3116.4,0.06004346]
[1720633227745,0.57328368,3117.0,3115.9,1.80671962]
[1720633227746,0.29439837,3116.9,3115.9,1.80671962]
[1720633227948,0.29439837,3116.9,3116.4,0.06003944]
[1720633228111,0.29439837,3116.9,3115.9,1.80671962]
[1720633228311,0.29439837,3116.9,3116.0,0.06055953]
[1720633230864,0.29439837,3116.9,3115.6,3.67436709]
[1720633230865,0.29439837,3116.9,3115.6,3.0]
[1720633231028,2.3722,3116.8,3116.1,0.06041743]
[1720633231234,2.3722,3116.8,3115.6,3.0]
[1720633231434,2.3722,3116.8,3116.2,0.06028741]
[1720633231631,2.3722,3116.8,3115.4,0.67436709]
[1720633231838,2.3722,3116.8,3116.3,0.06108679]
[1720633232035,0.23722,3116.7,3116.3,0.06108679]
[1720633232359,0.23722,3116.7,3115.1,1.80671962]
[1720633232556,2.4671,3116.6,3116.4,0.06102506]
[1720633232761,2.4671,3116.6,3115.2,1.80671962]
[1720633232956,2.4671,3116.6,3116.5,0.06096333]
[1720633233159,2.4671,3116.6,3114.8,0.67436709]
[1720633233160,2.737532,3116.6,3115.1,1.80671962]
[1720633233365,2.737532,3116.6,3114.8,0.67436709]
[1720633233660,2.737532,3116.6,3115.2,0.05819709]
[1720633233842,2.737532,3116.6,3114.9,0.05838243]
[1720633234061,2.737532,3116.6,3115.3,0.05813531]
[1720633234260,0.2974752,3116.5,3115.0,0.05832065]
[1720633234557,0.2974752,3116.5,3115.1,0.05825887]
[1720633234758,0.2974752,3116.5,3114.8,0.34926373]
[1720633235057,0.2974752,3116.5,3115.2,0.05819709]
[1720633235259,0.27645752,3116.4,3114.9,0.05838243]
[1720633235445,0.27645752,3116.4,3115.3,0.05813531]
[1720633235649,0.27645752,3116.4,3114.9,0.33492637]
[1720633236423,0.27645752,3116.4,3115.0,0.05832065]
[1720633240057,2.4284,3116.3,3115.0,0.05832065]
[1720633242052,0.33629495,3116.2,3115.0,0.05832065]
[1720633242360,0.6404102,3116.2,3115.0,0.05832065]
[1720633243659,0.33629495,3116.2,3115.0,0.05832065]
[1720633243860,0.33629495,3116.2,3115.0,0.12251724]
[1720633244164,0.33629495,3116.2,3115.1,1.66755412]
[1720633244324,0.33629495,3116.2,3115.1,0.55]
[1720633244524,2.4326,3116.8,3115.3,5.1863]
[1720633244767,0.33624297,3116.7,3115.4,3.05837182]
[1720633245071,0.33624297,3116.7,3115.5,2.79356448]
[1720633245274,0.33624297,3116.7,3115.6,4.11742579]
[1720633245577,0.33624297,3116.7,3116.3,2.852]
[1720633245757,2.491,3117.3,3116.3,2.852]
[1720633246077,0.33618063,3117.6,3116.4,3.05761551]
[1720633246372,2.2968,3118.0,3116.4,3.05761551]
[1720633246573,2.2968,3118.0,3116.5,0.59096155]
[1720633246574,0.22968,3117.9,3116.5,0.59096155]
[1720633246785,0.22968,3117.9,3116.5,0.64841969]
[1720633247947,2.4382,3117.8,3116.5,0.64841969]
[1720633248146,2.4382,3117.8,3116.5,0.05745814]
[1720633248576,2.4382,3117.8,3116.6,0.05737392]
[1720633248753,2.4382,3117.8,3116.0,3.0]
[1720633248958,2.4382,3117.8,3116.7,0.0573122]
[1720633249158,2.4382,3117.8,3116.0,3.0]
[1720633249364,2.3044,3117.6,3116.8,0.05725049]
[1720633249589,2.3044,3117.6,3116.1,0.5852]
[1720633249883,0.55,3117.7,3116.9,0.05702556]
[1720633249884,2.8544,3117.5,3116.9,0.05702556]
[1720633250115,2.3044,3117.5,3115.8,1.80671962]
[1720633250394,2.4002,3117.3,3115.9,0.27948907]
[1720633251697,2.4002,3117.3,3115.9,0.05764285]
[1720633252980,0.55,3117.2,3115.9,0.05764285]
[1720633253169,2.321,3117.1,3115.9,0.05764285]
[1720633254411,2.321,3117.1,3115.4,4.80671962]
[1720633254580,2.321,3117.1,3116.0,0.05762611]
[1720633254781,0.55,3117.2,3115.2,3.68185207]
[1720633254782,2.3134,3116.9,3115.2,3.68185207]
[1720633254982,2.3134,3116.9,3116.1,0.05756437]
[1720633255292,2.3134,3116.9,3115.6,1.80671962]
[1720633255708,2.3134,3116.9,3115.7,0.05781136]
[1720633257604,2.3134,3116.7,3115.2,1.80671962]
[1720633257813,2.3134,3116.7,3115.8,0.05779275]
[1720633258015,2.3134,3116.7,3114.7,4.81915724]
[1720633258186,2.3134,3116.7,3115.9,0.057731]
[1720633258391,2.3134,3116.7,3115.1,1.80671962]
[1720633258705,2.3134,3116.5,3116.0,0.05766925]
[1720633258889,2.3134,3116.5,3115.1,1.80671962]
[1720633259090,2.3134,3116.5,3114.8,3.0]
[1720633259276,2.3134,3116.5,3115.2,0.05816334]
[1720633259481,2.3134,3116.5,3114.9,0.05834868]
[1720633259669,0.259974,3116.4,3115.3,0.05810156]
[1720633259869,0.259974,3116.4,3115.0,0.36412177]
[1720633260104,2.3134,3116.5,3115.4,0.05803979]
[1720633260271,2.3134,3116.5,3115.2,2.4601]
[1720633260502,2.852,3117.4,3115.5,2.90997803]
[1720633260503,2.3134,3117.4,3115.5,2.90997803]
[1720633260704,2.3134,3117.4,3115.9,5.3121]
[1720633261245,2.3134,3117.4,3116.0,3.0578737]
[1720633261399,2.3134,3117.2,3116.0,0.0578737]
[1720633261605,2.3134,3117.2,3115.6,3.0]
[1720633261803,0.33619398,3117.1,3116.1,0.05781196]
[1720633262147,0.33619398,3117.1,3115.9,2.852]
[1720633262297,2.3134,3117.2,3116.2,0.05775022]
[1720633262504,2.3134,3117.2,3116.2,0.30577502]
[1720633262703,2.3134,3117.2,3116.3,0.05761534]
[1720633263005,2.3134,3117.2,3115.7,1.80671962]
[1720633263217,2.3134,3117.2,3116.4,0.05755361]
[1720633263427,2.3134,3117.2,3115.7,1.80671962]
[1720633263644,2.3134,3117.2,3116.5,0.05749188]
[1720633263933,0.23134,3117.1,3115.8,3.0]
[1720633264143,0.23134,3117.1,3115.7,1.80671962]
[1720633264144,2.3134,3117.2,3116.6,0.05743016]
[1720633264310,2.3134,3117.2,3116.1,2.3135]
[1720633264509,2.70527307,3117.6,3116.1,4.12021962]
[1720633264735,2.70527307,3117.6,3116.2,3.05767707]
[1720633265041,2.70527307,3117.6,3116.3,0.71778967]
[1720633265201,2.70527307,3117.6,3116.3,0.77540501]
[1720633265608,2.3691,3117.6,3116.3,0.77540501]
[1720633276339,2.2927,3118.0,3116.3,0.77540501]
[1720633276547,0.58288578,3117.9,3116.4,0.3775405]
[1720633276922,0.58288578,3117.9,3116.5,0.05726682]
[1720633277742,0.58288578,3117.9,3116.6,2.4052]
[1720633278054,0.58288578,3117.9,3116.7,0.05714337]
[1720633279654,0.55,3117.8,3116.7,0.05714337]
[1720633281070,0.55,3117.8,3116.7,0.60337771]
[1720633281363,3.2,3118.1,3116.8,2.4439]
[1720633281723,3.2,3118.1,3116.9,0.05701995]
[1720633281948,3.2,3118.1,3116.9,3.05701995]
[1720633284371,2.4632,3118.0,3116.9,3.05701995]
[1720633284564,3.02952,3118.0,3116.9,3.66173538]
[1720633285476,2.4632,3118.0,3116.9,3.66173538]
[1720633286562,3.2,3118.1,3116.9,3.72589674]
[1720633286804,2.4643,3118.5,3116.9,3.66173538]
[1720633286975,0.55,3118.4,3116.9,3.66173538]
[1720633289343,1.31512913,3118.3,3116.9,3.66173538]
[1720633289542,0.73651291,3118.2,3117.0,0.61056354]
[1720633290067,0.18651291,3118.2,3117.1,0.05664155]
[1720633290676,1.3151046,3118.3,3117.1,0.05664155]
[1720633290880,0.33611258,3118.3,3117.1,0.05664155]
[1720633291284,1.31516311,3118.3,3117.1,0.05664155]
[1720633291485,0.33611258,3118.3,3117.1,0.05664155]
[1720633292770,0.33611258,3118.3,3117.2,2.2542]
[1720633292976,0.33611258,3118.3,3117.3,0.23108416]
[1720633293181,0.33611258,3118.3,3117.3,0.28761169]
[1720633300597,1.189,3118.1,3117.3,0.23108416]
[1720633300805,1.189,3118.1,3117.4,0.05643212]
[1720633301303,1.189,3118.1,3117.2,2.2542]
[1720633301614,1.189,3118.1,3117.2,2.84067635]
[1720633301859,1.189,3118.1,3117.3,0.05650505]
[1720633304680,0.33611258,3118.3,3117.4,2.4781]
[1720633304681,1.52511258,3118.3,3117.4,2.4781]
[1720633305014,1.52511258,3118.3,3117.4,2.53454336]
[1720633305321,1.52511258,3118.3,3117.5,0.25345434]
[1720633305526,1.52511258,3118.3,3117.5,0.30983602]
[1720633307235,0.97901477,3118.2,3117.5,0.30983602]
[1720633308226,1.52511258,3118.3,3117.5,0.30983602]
[1720633310405,0.97830598,3118.2,3117.5,0.30983602]
[1720633310716,1.52511258,3118.3,3117.5,0.30983602]
[1720633312840,0.97828631,3118.2,3117.5,0.30983602]
[1720633313045,1.189,3118.1,3117.5,0.05638168]
[1720633315527,1.189,3117.9,3117.5,0.05638168]
[1720633315856,1.189,3117.7,3117.6,0.05632187]
[1720633316138,1.189,3117.7,3116.8,1.80671962]
[1720633316139,2.16725858,3117.7,3116.8,1.80671962]
[1720633316341,1.22859837,3117.6,3116.8,1.80671962]
[1720633316542,2.1672528,3117.5,3116.8,1.80671962]
[1720633316878,1.189,3117.5,3116.6,2.3588]
[1720633317204,0.33613928,3117.8,3116.7,1.189]
[1720633317401,1.52513928,3117.8,3116.8,0.35478]
[1720633317644,0.97821432,3117.7,3116.8,0.35478]
[1720633318040,0.97821432,3117.7,3116.9,2.371]
[1720633318250,1.52513928,3117.8,3116.9,5.371]
[1720633318452,1.52513928,3117.8,3117.0,0.62771418]
[1720633318621,0.33613928,3117.8,3117.0,3.62771418]
[1720633319051,0.33613928,3117.8,3117.1,2.3996]
[1720633319210,0.33613928,3117.8,3117.1,2.45476255]
[1720633320113,1.52513928,3117.8,3117.1,2.45476255]
[1720633320312,1.52513928,3117.8,3117.2,0.30273406]
[1720633320513,1.52513928,3117.8,3117.2,0.35783491]
[1720633321222,0.33613928,3117.8,3117.2,0.35783491]
[1720633321934,1.31434822,3117.8,3117.2,0.35783491]
[1720633322466,0.33613928,3117.8,3117.2,0.35783491]
[1720633322617,0.33613928,3117.8,3117.3,0.27574349]
[1720633322820,0.33613928,3117.8,3117.4,0.0549306]
[1720633323118,0.33613928,3117.8,3117.3,0.27574349]
[1720633323323,0.33613928,3117.8,3117.5,0.05486891]
[1720633323521,0.33613928,3117.8,3117.3,0.27574349]
[1720633323770,0.33613928,3117.8,3117.6,0.05480723]
[1720633323970,0.33613928,3117.8,3117.3,0.27574349]
[1720633324135,0.33613928,3117.8,3117.7,0.05474555]
[1720633324643,0.33613928,3117.8,3117.3,0.27574349]
[1720633324958,0.33613928,3117.8,3117.7,0.05474555]
[1720633325157,0.33613928,3117.8,3117.3,0.27574349]
[1720633325361,0.33613928,3117.8,3117.7,0.05474555]
[1720633325520,0.33613928,3117.8,3117.3,0.27574349]
[1720633325720,0.33613928,3117.8,3117.7,0.05474555]
[1720633325961,0.33613928,3117.8,3117.1,2.3996]
[1720633325962,2.50350442,3117.8,3117.1,2.3996]
[1720633326120,0.97835944,3117.7,3117.1,2.3996]
[1720633326325,0.97835944,3117.7,3117.2,0.05502587]
[1720633326557,1.52513928,3117.8,3117.2,0.05502587]
[1720633326766,0.97835849,3117.7,3117.2,0.05502587]
[1720633330031,1.52513928,3117.8,3117.2,0.05502587]
[1720633330371,1.52513928,3117.8,3117.2,0.30048846]
[1720633330540,0.97803654,3117.7,3117.2,0.30048846]
[1720633331270,1.189,3117.6,3117.2,0.05502587]
[1720633331625,0.97816524,3117.5,3117.2,0.05502587]
[1720633333453,1.189,3117.6,3117.2,0.05502587]
[1720633333662,0.97791791,3117.5,3117.2,0.05502587]
[1720633335428,1.189,3117.6,3116.8,2.3805]
[1720633335641,0.97826621,3117.5,3116.9,0.53805]
[1720633335847,0.97826621,3117.5,3117.0,0.05513314]
[1720633336765,0.97826621,3117.5,3116.8,2.3805]
[1720633336972,0.97826621,3117.5,3117.1,0.05507144]
[1720633337169,1.189,3117.6,3116.8,2.3805]
[1720633337678,1.189,3117.6,3116.9,0.05519484]
[1720633339093,1.189,3117.4,3116.9,0.05519484]
[1720633339244,0.21672601,3117.3,3116.9,0.05519484]
[1720633339447,1.189,3117.4,3116.5,2.3346]
[1720633339673,1.189,3117.4,3117.0,0.05513314]
[1720633339868,1.189,3117.4,3116.5,2.3346]
[1720633340067,1.189,3117.4,3116.6,0.05537999]
[1720633340272,1.189,3117.4,3116.7,0.238998]
[1720633340670,1.189,3117.4,3116.8,0.05525656]
[1720633344358,1.189,3117.2,3116.8,0.05525656]
[1720633344888,1.189,3117.2,3116.5,2.3346]
[1720633345191,1.189,3117.2,3116.9,0.05525484]
[1720633345393,1.189,3117.2,3116.5,2.3346]
[1720633345693,1.189,3117.2,3116.6,0.23346]
[1720633345850,1.189,3117.2,3116.6,3.28889999]
[1720633347607,1.189,3117.4,3116.6,3.28889999]
[1720633349412,0.33617188,3117.3,3116.6,3.28889999]
[1720633349586,0.33617188,3117.3,3116.7,0.56235]
[1720633350126,0.33617188,3117.3,3116.8,0.05531656]
[1720633350420,0.33617188,3117.3,3116.9,2.4177]
[1720633350594,0.33617188,3117.3,3117.1,2.4101]
[1720633350797,0.33617188,3117.3,3117.1,5.4101]
[1720633351006,0.33617188,3117.3,3117.2,0.72049905]
[1720633351880,0.33617188,3117.3,3117.2,0.05506974]
[1720633359049,0.33617188,3117.3,3116.8,2.3231]
[1720633359259,0.33617188,3117.3,3117.2,0.05499661]
[1720633359428,0.33617188,3117.3,3116.8,2.3231]
[1720633359639,0.33617188,3117.3,3117.2,0.05499661]
[1720633359833,0.33617188,3117.3,3116.8,2.3231]
[1720633360068,0.33617188,3117.3,3117.2,0.05499661]
[1720633360240,0.33617188,3117.3,3116.8,2.55541]
[1720633360436,0.33617188,3117.3,3117.2,0.05499661]
[1720633360657,0.33617188,3117.3,3116.8,2.55541]
[1720633360868,0.33617188,3117.3,3117.2,0.05499661]
[1720633361027,0.33617188,3117.3,3116.8,2.3231]
[1720633361230,0.33617188,3117.3,3117.2,0.05499661]
[1720633361866,0.33617188,3117.3,3116.6,3.0]
[1720633362100,1.31412254,3117.3,3116.4,5.3153]
[1720633362240,1.31412254,3117.3,3116.4,2.3153]
[1720633362241,1.189,3117.1,3116.4,2.3153]
[1720633362550,1.52517188,3117.3,3116.5,0.58702046]
[1720633362753,0.97789453,3117.2,3116.5,3.58702046]
[1720633364462,0.33617188,3117.3,3116.5,4.77602046]
[1720633364779,0.33617188,3117.3,3116.8,2.3887]
[1720633365078,0.33617188,3117.3,3116.9,0.35777]
[1720633365267,0.33617188,3117.3,3116.9,0.41304359]
[1720633365463,0.33617188,3117.3,3116.9,3.41304359]
[1720633369300,1.189,3117.6,3116.9,3.41304359]
[1720633369475,0.97740746,3117.5,3116.9,3.41304359]
[1720633370660,0.97740746,3117.5,3116.9,3.05527359]
[1720633370861,0.97740746,3117.5,3116.9,0.05527359]
[1720633371485,1.189,3117.4,3116.9,0.05527359]
[1720633371700,0.97740746,3117.3,3116.5,2.4105]
[1720633371919,0.97740746,3117.3,3116.6,0.05543998]
[1720633372278,0.97725451,3117.2,3116.6,0.05543998]
[1720633372598,1.189,3117.4,3116.6,0.60203398]
[1720633372766,0.97721336,3117.3,3116.6,3.60203398]
[1720633374208,1.189,3117.2,3116.6,3.05543998]
[1720633374378,1.189,3117.2,3116.6,0.05543998]
[1720633374561,0.97784596,3117.1,3116.6,0.05543998]
[1720633374759,0.97784596,3117.1,3116.3,4.80671962]
[1720633374988,0.97784596,3117.1,3116.4,0.05556343]
[1720633375607,1.189,3117.2,3116.4,0.05556343]
[1720633376102,0.97867451,3117.1,3116.4,0.05556343]
[1720633377017,1.189,3117.2,3116.4,0.05556343]
[1720633377439,1.189,3117.4,3116.4,1.24456343]
[1720633377655,0.97827764,3117.3,3116.5,0.50885254]
[1720633377938,0.97827764,3117.3,3116.6,0.05556373]
[1720633378315,1.189,3117.6,3116.7,2.3557]
[1720633378621,0.97817673,3117.5,3116.7,2.41120201]
[1720633379147,1.189,3117.6,3116.7,2.41120201]
[1720633379341,1.189,3117.4,3116.7,2.41120201]
[1720633379633,0.9779604,3117.3,3116.7,2.41120201]
[1720633380509,0.9779604,3117.3,3116.7,3.00320747]
[1720633380719,0.33616265,3117.5,3116.8,3.0]
[1720633380905,1.31433018,3117.5,3116.8,3.05542342]
[1720633381632,1.189,3117.4,3116.8,3.05542342]
[1720633383734,1.189,3117.2,3116.8,0.05542342]
[1720633383933,1.189,3117.0,3116.8,0.05542342]
[1720633384235,1.189,3117.0,3116.4,2.3479]
[1720633384449,1.189,3117.0,3116.9,0.05367966]
[1720633384610,1.189,3117.2,3116.4,2.3479]
[1720633384810,0.9789565,3117.1,3116.9,0.05368153]
[1720633385128,0.9789565,3117.1,3116.4,2.88269]
[1720633385129,0.9789565,3117.1,3117.0,0.05366671]
[1720633385327,0.9789565,3117.1,3116.4,2.3479]
[1720633385531,0.9789565,3117.1,3117.0,0.05366671]
[1720633385732,0.9789565,3117.1,3116.4,2.3479]
[1720633385942,1.189,3117.2,3117.0,0.05366671]
[1720633386258,1.189,3117.2,3116.5,3.0]
[1720633386259,0.9790304,3117.1,3116.5,3.0]
[1720633386415,0.9790304,3117.1,3116.4,2.3479]
[1720633387417,1.189,3117.2,3116.4,2.3479]
[1720633387662,0.97904795,3117.1,3116.4,2.3479]
[1720633389211,1.189,3117.2,3116.4,2.3479]
[1720633389415,1.189,3117.0,3116.4,2.3479]
[1720633392761,1.189,3117.2,3116.4,2.3479]
[1720633393469,1.189,3117.2,3116.5,0.05400527]
[1720633394583,1.5251694,3117.2,3116.5,0.05400527]
[1720633394893,1.189,3117.0,3116.5,0.05400527]
[1720633395091,1.189,3117.0,3116.2,3.0]
[1720633395092,0.21682457,3116.9,3116.2,3.0]
[1720633395280,1.189,3117.0,3116.1,2.4673]
[1720633395485,1.189,3117.0,3116.3,0.05412873]
[1720633395792,1.189,3117.0,3116.1,2.4673]
[1720633395793,1.189,3117.0,3116.4,0.054067]
[1720633396303,1.189,3117.0,3116.5,0.05400902]
[1720633396512,1.189,3117.0,3116.2,3.0]
[1720633396671,1.189,3116.6,3116.1,2.4673]
[1720633397007,1.189,3116.6,3115.7,1.80671962]
[1720633397008,1.189,3116.6,3116.2,0.05419609]
[1720633397495,1.189,3116.6,3116.3,0.05413436]
[1720633397703,1.189,3116.6,3115.8,5.2937]
[1720633397901,1.189,3116.6,3115.9,0.76442328]
[1720633398198,1.189,3116.8,3115.9,0.76442328]
[1720633401115,0.3361694,3117.2,3116.3,1.189]
[1720633401271,0.3361694,3117.2,3116.4,2.3406]
[1720633401471,0.3361694,3117.2,3116.4,2.3947289]
[1720633401700,0.3361694,3117.2,3116.5,0.65837289]
[1720633401975,0.3361694,3117.2,3116.6,0.05399045]
[1720633403215,1.189,3117.1,3116.6,0.05399045]
[1720633403616,1.189,3117.1,3116.4,2.3406]
[1720633403772,0.97868739,3117.0,3116.7,0.05391373]
[1720633403971,0.97868739,3117.0,3116.4,2.3406]
[1720633404282,1.189,3117.1,3116.5,0.0540653]
[1720633404602,0.3361694,3117.2,3116.5,0.0540653]
[1720633404825,1.31491627,3117.2,3116.5,0.0540653]
[1720633405026,1.189,3117.1,3116.5,0.0540653]
[1720633406494,0.97849383,3117.0,3116.5,0.0540653]
[1720633406697,1.40574938,3116.9,3116.5,0.0540653]
[1720633407144,1.40574938,3116.9,3116.6,0.05400733]
[1720633407347,1.40574938,3116.9,3116.1,2.3942]
[1720633407509,1.189,3116.9,3116.2,0.05425424]
[1720633407924,0.97846014,3116.8,3116.2,0.05425424]
[1720633408240,1.189,3116.7,3116.2,0.05425424]
[1720633419074,3.9974,3117.6,3116.2,0.05425424]
[1720633419293,1.189,3116.3,3116.2,0.05425424]
[1720633419443,2.16732412,3116.3,3115.7,2.4302]
[1720633419770,1.189,3116.3,3115.7,2.4302]
[1720633420132,1.189,3116.3,3115.8,0.04650133]
[1720633420377,1.189,3116.3,3115.7,2.4302]
[1720633420577,1.189,3116.3,3115.8,0.04650133]
[1720633420730,1.189,3116.3,3115.7,2.4302]
[1720633421066,1.189,3116.3,3115.8,0.04650133]
[1720633421432,1.189,3116.3,3115.7,2.4302]
[1720633421633,1.189,3116.3,3115.9,0.04643958]
[1720633421934,1.189,3116.3,3116.0,0.0451407]
[1720633422143,0.33610526,3116.6,3115.6,1.80671962]
[1720633422144,1.189,3116.1,3115.6,1.80671962]
[1720633422440,1.189,3116.1,3115.7,0.04532595]
[1720633423963,1.189,3116.1,3115.8,0.0452642]
[1720633424480,1.189,3116.1,3115.4,2.431]
[1720633424681,1.189,3116.1,3115.9,0.04391161]
[1720633424972,1.189,3116.1,3116.0,0.04384986]
[1720633425141,1.189,3116.1,3115.4,2.431]
[1720633425467,1.189,3116.1,3115.5,0.04415863]
[1720633430854,1.189,3115.7,3115.5,0.04415863]
[1720633431277,1.189,3115.7,3115.1,2.3553]
[1720633431478,1.189,3115.9,3115.6,0.04296377]
[1720633431695,1.189,3115.9,3115.2,0.23553]
[1720633431696,1.189,3115.9,3115.2,3.0]
[1720633431984,1.189,3115.9,3115.1,2.3553]
[1720633432183,1.189,3115.9,3115.2,0.04324087]
[1720633432973,1.189,3115.7,3115.2,0.04324087]
[1720633433180,1.189,3115.5,3115.2,0.04324087]
[1720633433683,1.189,3115.5,3115.3,0.04198628]
[1720633434049,1.189,3115.5,3114.8,5.3995]
[1720633434258,1.189,3115.5,3115.4,0.04192451]
[1720633434460,1.189,3115.5,3114.8,2.3995]
[1720633434986,1.189,3115.5,3114.9,0.0422334]
[1720633435377,1.189,3115.0,3114.9,0.0422334]
[1720633435550,1.189,3115.0,3114.4,2.4186]
[1720633435749,2.3032,3115.6,3114.2,2.4186]
[1720633435989,1.189,3114.7,3114.5,0.03977672]
[1720633436178,1.189,3114.6,3113.8,1.80671962]
[1720633436384,1.189,3114.6,3113.7,2.406]
[1720633438497,1.189,3114.6,3113.7,3.595]
[1720633438685,1.189,3114.6,3113.8,3.04020944]
[1720633438863,1.189,3114.6,3113.9,0.66352094]
[1720633439477,1.189,3114.6,3114.0,0.04008579]
[1720633440407,1.189,3115.0,3114.1,2.406]
[1720633440575,1.189,3115.0,3114.2,0.03996215]
[1720633440780,2.3432,3115.4,3114.2,0.03996215]
[1720633440781,1.189,3115.4,3114.4,2.406]
[1720633440985,2.3432,3115.7,3114.5,0.03977672]
[1720633441279,2.3432,3116.1,3114.6,2.406]
[1720633441669,2.3432,3116.1,3114.7,0.03965312]
[1720633441995,0.55432,3116.0,3114.7,0.58421843]
[1720633442195,1.189,3115.5,3114.7,3.03965312]
[1720633442433,1.189,3115.5,3114.7,0.03965312]
[1720633442597,0.55432,3116.0,3114.7,0.03965312]
[1720633446396,5.2002,3116.1,3114.7,0.03965312]
[1720633449500,2.857,3116.1,3114.7,0.03965312]
[1720633449734,2.857,3115.7,3114.7,0.03965312]
[1720633450111,2.857,3115.3,3114.3,2.289]
[1720633450435,0.2857,3115.2,3113.9,2.4563]
[1720633450611,2.4141,3115.1,3114.0,0.03789671]
[1720633455646,2.857,3114.5,3114.0,0.03789671]
[1720633455873,2.857,3114.1,3113.0,2.4821]
[1720633456167,0.2857,3114.0,3113.0,2.4821]
[1720633456334,0.2857,3114.0,3113.1,0.03503095]
[1720633456531,0.2857,3114.0,3113.0,2.4821]
[1720633456872,0.2857,3114.0,3113.1,0.03503095]
[1720633457057,0.2857,3114.0,3113.0,2.4821]
[1720633457237,0.31427,3113.9,3113.0,2.4821]
[1720633457446,0.31427,3113.9,3113.1,0.03503095]